[Event "Late-Titled-Tuesday-Blitz-April-02-2024"]
[Site "Chess.com"]
[Date "2024.04.02"]
[Round "6"]
[White "albi1999"]
[Black "arturdailima"]
[Result "1-0"]
[WhiteElo "2613"]
[BlackElo "2400"]
[TimeControl "180+1"]
[EndTime "15:05:52 PDT"]
[Termination "albi1999 won by resignation"]

1. Nf3 {[%clk 0:02:59.5]} 1... Nf6 {[%clk 0:03:00.9]} 2. c4 {[%clk 0:02:54.5]}
2... g6 {[%clk 0:03:00]} 3. b3 {[%clk 0:02:54.2]} 3... Bg7 {[%clk 0:02:59.9]} 4.
Bb2 {[%clk 0:02:55.1]} 4... O-O {[%clk 0:03:00.3]} 5. e3 {[%clk 0:02:55.2]} 5...
b6 {[%clk 0:03:00.5]} 6. Nc3 {[%clk 0:02:54.5]} 6... Bb7 {[%clk 0:03:00.1]} 7.
d4 {[%clk 0:02:54.8]} 7... Ne4 {[%clk 0:02:58.5]} 8. Be2 {[%clk 0:02:50.9]} 8...
d6 {[%clk 0:02:56.8]} 9. O-O {[%clk 0:02:49.9]} 9... Nd7 {[%clk 0:02:53.9]} 10.
Rc1 {[%clk 0:02:49.3]} 10... c5 {[%clk 0:02:52]} 11. Nxe4 {[%clk 0:02:45.3]}
11... Bxe4 {[%clk 0:02:50.4]} 12. Qd2 {[%clk 0:02:46.2]} 12... Qc7 {[%clk
0:02:50.1]} 13. d5 {[%clk 0:02:43]} 13... Bxf3 {[%clk 0:02:29.2]} 14. gxf3
{[%clk 0:02:41.1]} 14... Bxb2 {[%clk 0:02:16.7]} 15. Qxb2 {[%clk 0:02:42]} 15...
e5 {[%clk 0:02:16.7]} 16. dxe6 {[%clk 0:02:35.6]} 16... fxe6 {[%clk 0:02:17.6]}
17. f4 {[%clk 0:02:34.8]} 17... Rad8 {[%clk 0:02:16.1]} 18. Rcd1 {[%clk
0:02:33]} 18... e5 {[%clk 0:02:15.1]} 19. fxe5 {[%clk 0:02:30]} 19... Nxe5
{[%clk 0:02:16]} 20. f4 {[%clk 0:02:28.9]} 20... Nc6 {[%clk 0:02:15.2]} 21. Bf3
{[%clk 0:02:27.4]} 21... Ne7 {[%clk 0:02:08.7]} 22. Rd3 {[%clk 0:02:22.7]} 22...
d5 {[%clk 0:01:57.9]} 23. cxd5 {[%clk 0:02:17.3]} 23... Nf5 {[%clk 0:01:48]} 24.
d6 {[%clk 0:02:06.9]} 24... Rxd6 {[%clk 0:01:46.6]} 25. Rfd1 {[%clk 0:01:50.5]}
25... Rxd3 {[%clk 0:01:16]} 26. Rxd3 {[%clk 0:01:48.4]} 26... Qg7 {[%clk
0:01:16.7]} 27. Qxg7+ {[%clk 0:01:34.6]} 27... Kxg7 {[%clk 0:01:15.5]} 28. Bg4
{[%clk 0:01:32.8]} 28... Rf7 {[%clk 0:01:09.6]} 29. Bxf5 {[%clk 0:01:31.7]}
29... gxf5 {[%clk 0:01:09.1]} 30. Kf2 {[%clk 0:01:32]} 30... Kf6 {[%clk
0:01:09.4]} 31. Rd6+ {[%clk 0:01:31.3]} 31... Ke7 {[%clk 0:01:08.2]} 32. Rh6
{[%clk 0:01:31.2]} 32... Kd7 {[%clk 0:01:06.3]} 33. Kg3 {[%clk 0:01:21.5]} 33...
Kc7 {[%clk 0:01:02.8]} 34. Kh4 {[%clk 0:01:16]} 34... Re7 {[%clk 0:01:01.9]} 35.
Kg5 {[%clk 0:01:15.8]} 35... Rxe3 {[%clk 0:01:02.2]} 36. Rxh7+ {[%clk
0:01:12.4]} 36... Kd6 {[%clk 0:01:02.4]} 37. Kxf5 {[%clk 0:01:00.4]} 37... b5
{[%clk 0:01:02.4]} 38. Rxa7 {[%clk 0:00:57]} 38... c4 {[%clk 0:01:02.7]} 39.
bxc4 {[%clk 0:00:57.2]} 39... bxc4 {[%clk 0:01:03.6]} 40. Ra8 {[%clk 0:00:54.8]}
40... c3 {[%clk 0:00:51.4]} 41. Rc8 {[%clk 0:00:53.9]} 41... Kd5 {[%clk
0:00:51.3]} 42. h4 {[%clk 0:00:47.4]} 42... Kd4 {[%clk 0:00:47.3]} 43. Rd8+
{[%clk 0:00:41.4]} 43... Kc4 {[%clk 0:00:47.1]} 44. h5 {[%clk 0:00:39.7]} 44...
c2 {[%clk 0:00:45.7]} 45. Rc8+ {[%clk 0:00:39.8]} 45... Kd3 {[%clk 0:00:43.4]}
46. h6 {[%clk 0:00:37.8]} 46... Kd2 {[%clk 0:00:35.1]} 47. Kg4 {[%clk
0:00:16.9]} 47... Rc3 {[%clk 0:00:32.4]} 48. Rxc3 {[%clk 0:00:16.5]} 48... Kxc3
{[%clk 0:00:32.5]} 49. h7 {[%clk 0:00:17.4]} 49... c1=Q {[%clk 0:00:33]} 50.
h8=Q+ {[%clk 0:00:18]} 50... Kd3 {[%clk 0:00:32]} 51. Qd8+ {[%clk 0:00:16.8]}
51... Ke3 {[%clk 0:00:30.2]} 52. Qb6+ {[%clk 0:00:16.2]} 52... Ke2 {[%clk
0:00:30.7]} 53. Qb5+ {[%clk 0:00:14.4]} 53... Kf2 {[%clk 0:00:27.4]} 54. Qb3
{[%clk 0:00:11.1]} 54... Qg1+ {[%clk 0:00:25.1]} 55. Kf5 {[%clk 0:00:10.6]}
55... Qg7 {[%clk 0:00:22.2]} 56. Qd5 {[%clk 0:00:05.2]} 56... Qf8+ {[%clk
0:00:20.6]} 57. Ke4 {[%clk 0:00:05.4]} 57... Qe7+ {[%clk 0:00:19.3]} 58. Kd4
{[%clk 0:00:04]} 58... Qe3+ {[%clk 0:00:17.8]} 59. Kc4 {[%clk 0:00:03.3]} 59...
Qc1+ {[%clk 0:00:17.4]} 60. Kb5 {[%clk 0:00:03.6]} 60... Qxf4 {[%clk 0:00:16.7]}
61. Qc5+ {[%clk 0:00:03.3]} 61... Kf1 {[%clk 0:00:09.5]} 62. a4 {[%clk
0:00:04.2]} 62... Qb8+ {[%clk 0:00:08.4]} 63. Qb6 {[%clk 0:00:04.5]} 63... Qe5+
{[%clk 0:00:08]} 64. Qc5 {[%clk 0:00:04.7]} 64... Qb8+ {[%clk 0:00:07.7]} 65.
Kc4 {[%clk 0:00:05.4]} 65... Qf4+ {[%clk 0:00:06.7]} 66. Qd4 {[%clk 0:00:05.4]}
66... Qc7+ {[%clk 0:00:07]} 67. Kb3 {[%clk 0:00:05.3]} 67... Qb7+ {[%clk
0:00:06.9]} 68. Qb4 {[%clk 0:00:05.9]} 68... Qf3+ {[%clk 0:00:07]} 69. Qc3
{[%clk 0:00:06.3]} 69... Qb7+ {[%clk 0:00:07.4]} 70. Ka3 {[%clk 0:00:06.8]}
70... Qe7+ {[%clk 0:00:07.7]} 71. Kb2 {[%clk 0:00:07.1]} 71... Qb7+ {[%clk
0:00:08]} 72. Qb3 {[%clk 0:00:07.6]} 72... Qg7+ {[%clk 0:00:07.5]} 73. Ka2
{[%clk 0:00:07.7]} 73... Qg2+ {[%clk 0:00:06.7]} 74. Ka1 {[%clk 0:00:07.7]}
74... Qd2 {[%clk 0:00:05.4]} 75. Qb1+ {[%clk 0:00:07.4]} 75... Ke2 {[%clk
0:00:04.4]} 76. Qb2 {[%clk 0:00:07.9]} 76... Qxb2+ {[%clk 0:00:02.4]} 77. Kxb2
{[%clk 0:00:08.8]} 77... Kd3 {[%clk 0:00:03.1]} 78. a5 {[%clk 0:00:09.7]} 1-0

[Event "Late-Titled-Tuesday-Blitz-April-02-2024"]
[Site "Chess.com"]
[Date "2024.04.02"]
[Round "6"]
[White "carloseduar100"]
[Black "OriTaichman"]
[Result "1-0"]
[WhiteElo "2235"]
[BlackElo "2545"]
[TimeControl "180+1"]
[EndTime "15:05:55 PDT"]
[Termination "carloseduar100 won by checkmate"]

1. g3 {[%clk 0:02:58.4]} 1... g6 {[%clk 0:02:50.6]} 2. Bg2 {[%clk 0:02:59.3]}
2... Bg7 {[%clk 0:02:51.1]} 3. Nf3 {[%clk 0:02:59.5]} 3... Nf6 {[%clk
0:02:51.6]} 4. O-O {[%clk 0:03:00.4]} 4... O-O {[%clk 0:02:52.3]} 5. d4 {[%clk
0:03:00.9]} 5... d6 {[%clk 0:02:52.9]} 6. c3 {[%clk 0:03:01.3]} 6... c6 {[%clk
0:02:52.7]} 7. Re1 {[%clk 0:03:00]} 7... Qa5 {[%clk 0:02:49.6]} 8. e4 {[%clk
0:02:59.7]} 8... Qh5 {[%clk 0:02:49.5]} 9. e5 {[%clk 0:02:58.9]} 9... Nd5 {[%clk
0:02:45]} 10. exd6 {[%clk 0:02:57]} 10... exd6 {[%clk 0:02:45]} 11. Na3 {[%clk
0:02:41.4]} 11... Bh3 {[%clk 0:02:43.3]} 12. Nc4 {[%clk 0:02:40.2]} 12... Rd8
{[%clk 0:02:30.9]} 13. Bg5 {[%clk 0:02:33.9]} 13... Bxg2 {[%clk 0:02:25.2]} 14.
Kxg2 {[%clk 0:02:32.5]} 14... f6 {[%clk 0:02:23.3]} 15. Bd2 {[%clk 0:02:24.3]}
15... b5 {[%clk 0:02:18]} 16. Ne3 {[%clk 0:02:11.8]} 16... Nxe3+ {[%clk
0:02:16.8]} 17. Rxe3 {[%clk 0:02:08.5]} 17... Qd5 {[%clk 0:02:15.7]} 18. Qb3
{[%clk 0:01:49.2]} 18... Kf7 {[%clk 0:02:01]} 19. Qxd5+ {[%clk 0:01:49.5]} 19...
cxd5 {[%clk 0:02:01.1]} 20. Rae1 {[%clk 0:01:50.1]} 20... Nc6 {[%clk 0:02:01.4]}
21. h4 {[%clk 0:01:43.4]} 21... a5 {[%clk 0:01:56.3]} 22. a3 {[%clk 0:01:43.2]}
22... a4 {[%clk 0:01:55.6]} 23. R3e2 {[%clk 0:01:36.1]} 23... Re8 {[%clk
0:01:55.2]} 24. Bf4 {[%clk 0:01:32.7]} 24... Rxe2 {[%clk 0:01:47.8]} 25. Rxe2
{[%clk 0:01:32.7]} 25... Rd8 {[%clk 0:01:43.6]} 26. Nd2 {[%clk 0:01:32.3]} 26...
h5 {[%clk 0:01:40.6]} 27. Nf1 {[%clk 0:01:27.4]} 27... Ne7 {[%clk 0:01:12.5]}
28. b3 {[%clk 0:01:16]} 28... axb3 {[%clk 0:01:12]} 29. Rb2 {[%clk 0:01:16.2]}
29... Ke6 {[%clk 0:01:04]} 30. Rxb3 {[%clk 0:01:16.2]} 30... Ra8 {[%clk
0:00:56.9]} 31. Rxb5 {[%clk 0:00:58.1]} 31... Rxa3 {[%clk 0:00:56.8]} 32. Rb6
{[%clk 0:00:58.9]} 32... Nc8 {[%clk 0:00:55.1]} 33. Rc6 {[%clk 0:00:58.9]} 33...
Kd7 {[%clk 0:00:55.2]} 34. Rxc8 {[%clk 0:00:50.6]} 34... Kxc8 {[%clk 0:00:56.1]}
35. Bxd6 {[%clk 0:00:50.8]} 35... Rxc3 {[%clk 0:00:55.8]} 36. Ne3 {[%clk
0:00:50.6]} 36... Rd3 {[%clk 0:00:31.1]} 37. Bc5 {[%clk 0:00:50.4]} 37... f5
{[%clk 0:00:26.2]} 38. Nxd5 {[%clk 0:00:50.6]} 38... Bxd4 {[%clk 0:00:25.6]} 39.
Bxd4 {[%clk 0:00:51.2]} 39... Rxd4 {[%clk 0:00:26.5]} 40. Ne7+ {[%clk 0:00:51]}
40... Kd7 {[%clk 0:00:26.8]} 41. Nxg6 {[%clk 0:00:51.9]} 41... Rd6 {[%clk
0:00:23.9]} 42. Nf4 {[%clk 0:00:52]} 42... Rh6 {[%clk 0:00:24.2]} 43. Kf3 {[%clk
0:00:52.2]} 43... Kd6 {[%clk 0:00:24.8]} 44. Nd3 {[%clk 0:00:51.9]} 44... Ke6
{[%clk 0:00:19.5]} 45. Kf4 {[%clk 0:00:52]} 45... Kf6 {[%clk 0:00:19.9]} 46. Nc5
{[%clk 0:00:44.4]} 46... Rh7 {[%clk 0:00:19.4]} 47. Nd3 {[%clk 0:00:30.7]} 47...
Rd7 {[%clk 0:00:18.1]} 48. Ke3 {[%clk 0:00:31.4]} 48... Ra7 {[%clk 0:00:17.1]}
49. Nf4 {[%clk 0:00:31.6]} 49... Ra3+ {[%clk 0:00:16]} 50. Ke2 {[%clk
0:00:30.6]} 50... Ra2+ {[%clk 0:00:15.5]} 51. Kf3 {[%clk 0:00:30.7]} 51... Ra3+
{[%clk 0:00:14]} 52. Kg2 {[%clk 0:00:31]} 52... Ke5 {[%clk 0:00:11.9]} 53. Nxh5
{[%clk 0:00:31.1]} 53... Ra8 {[%clk 0:00:12.8]} 54. Nf4 {[%clk 0:00:31.1]} 54...
Kf6 {[%clk 0:00:12.8]} 55. Nh3 {[%clk 0:00:25.5]} 55... Rb8 {[%clk 0:00:12.6]}
56. Kf3 {[%clk 0:00:24.9]} 56... Rb3+ {[%clk 0:00:12.4]} 57. Kg2 {[%clk
0:00:25.3]} 57... Rb2 {[%clk 0:00:12.7]} 58. Nf4 {[%clk 0:00:25.4]} 58... Ra2
{[%clk 0:00:13.3]} 59. Nd5+ {[%clk 0:00:23.6]} 59... Ke5 {[%clk 0:00:12.9]} 60.
Ne3 {[%clk 0:00:23.9]} 60... Kf6 {[%clk 0:00:12]} 61. Kf3 {[%clk 0:00:23.6]}
61... Ra3 {[%clk 0:00:11.8]} 62. Kg2 {[%clk 0:00:18.7]} 62... Ra2 {[%clk
0:00:12]} 63. Nf1 {[%clk 0:00:18.3]} 63... Ke5 {[%clk 0:00:11.7]} 64. Nh2 {[%clk
0:00:18.6]} 64... Ke4 {[%clk 0:00:09.6]} 65. Nf3 {[%clk 0:00:18.7]} 65... Ra3
{[%clk 0:00:06.8]} 66. Ng5+ {[%clk 0:00:18.9]} 66... Ke5 {[%clk 0:00:06.8]} 67.
f3 {[%clk 0:00:18.8]} 67... Ra2+ {[%clk 0:00:05.5]} 68. Kh3 {[%clk 0:00:18.7]}
68... f4 {[%clk 0:00:05.9]} 69. Kg4 {[%clk 0:00:14.2]} 69... Rg2 {[%clk
0:00:03.2]} 70. Ne4 {[%clk 0:00:14.9]} 70... fxg3 {[%clk 0:00:03.2]} 71. Nxg3
{[%clk 0:00:15.8]} 71... Rg1 {[%clk 0:00:03.4]} 72. h5 {[%clk 0:00:15.9]} 72...
Kf6 {[%clk 0:00:03.9]} 73. f4 {[%clk 0:00:15.8]} 73... Kg7 {[%clk 0:00:04.2]}
74. Kf3 {[%clk 0:00:15.2]} 74... Ra1 {[%clk 0:00:04.7]} 75. Kg4 {[%clk 0:00:15]}
75... Ra3 {[%clk 0:00:05.6]} 76. Ne4 {[%clk 0:00:15.2]} 76... Kh7 {[%clk
0:00:06.4]} 77. Ng5+ {[%clk 0:00:15.3]} 77... Kh6 {[%clk 0:00:06.5]} 78. Nf7+
{[%clk 0:00:15.7]} 78... Kg7 {[%clk 0:00:06.5]} 79. Ne5 {[%clk 0:00:16.4]} 79...
Ra4 {[%clk 0:00:07.4]} 80. Kg5 {[%clk 0:00:15.9]} 80... Ra1 {[%clk 0:00:07.6]}
81. h6+ {[%clk 0:00:16.3]} 81... Kh7 {[%clk 0:00:08]} 82. Nf7 {[%clk 0:00:16.6]}
82... Rg1+ {[%clk 0:00:08.5]} 83. Kf6 {[%clk 0:00:17.1]} 83... Rf1 {[%clk
0:00:08.5]} 84. f5 {[%clk 0:00:17.4]} 84... Kg8 {[%clk 0:00:08.7]} 85. Ng5
{[%clk 0:00:17.6]} 85... Rf2 {[%clk 0:00:07.6]} 86. Kg6 {[%clk 0:00:18]} 86...
Rf1 {[%clk 0:00:06.9]} 87. h7+ {[%clk 0:00:18.3]} 87... Kh8 {[%clk 0:00:06.8]}
88. Nf7# {[%clk 0:00:18.8]} 1-0

[Event "Late-Titled-Tuesday-Blitz-April-02-2024"]
[Site "Chess.com"]
[Date "2024.04.02"]
[Round "6"]
[White "KaydenTroffChess"]
[Black "Njal28"]
[Result "1/2-1/2"]
[WhiteElo "2849"]
[BlackElo "3049"]
[TimeControl "180+1"]
[EndTime "15:08:23 PDT"]
[Termination "Game drawn by 50-move rule"]

1. d4 {[%clk 0:03:00.9]} 1... Nf6 {[%clk 0:02:59.6]} 2. Nf3 {[%clk 0:03:00.6]}
2... d5 {[%clk 0:02:59.8]} 3. Bf4 {[%clk 0:03:00.5]} 3... c5 {[%clk 0:02:55.3]}
4. e3 {[%clk 0:03:00.8]} 4... Nc6 {[%clk 0:02:55.7]} 5. Nc3 {[%clk 0:03:01.3]}
5... cxd4 {[%clk 0:02:52.3]} 6. Nxd4 {[%clk 0:03:00.8]} 6... a6 {[%clk
0:02:51.4]} 7. Be2 {[%clk 0:02:59.1]} 7... e6 {[%clk 0:02:47.9]} 8. O-O {[%clk
0:02:58.5]} 8... Bd6 {[%clk 0:02:47.8]} 9. Bg5 {[%clk 0:02:51.4]} 9... O-O
{[%clk 0:02:46.1]} 10. Nxc6 {[%clk 0:02:48.2]} 10... bxc6 {[%clk 0:02:46.2]} 11.
e4 {[%clk 0:02:40.6]} 11... h6 {[%clk 0:02:35.1]} 12. Bh4 {[%clk 0:02:35.7]}
12... Be7 {[%clk 0:02:12.5]} 13. e5 {[%clk 0:02:32.1]} 13... Nd7 {[%clk
0:02:11]} 14. Bg3 {[%clk 0:02:30.5]} 14... Rb8 {[%clk 0:02:10]} 15. Rb1 {[%clk
0:02:30]} 15... c5 {[%clk 0:02:07.6]} 16. f4 {[%clk 0:02:27.6]} 16... Bb7 {[%clk
0:02:04.8]} 17. Bf3 {[%clk 0:01:51.8]} 17... c4 {[%clk 0:01:58]} 18. f5 {[%clk
0:01:48.5]} 18... d4 {[%clk 0:01:42.3]} 19. Ne2 {[%clk 0:00:47.2]} 19... d3
{[%clk 0:00:42.6]} 20. cxd3 {[%clk 0:00:39.3]} 20... cxd3 {[%clk 0:00:43.5]} 21.
Nf4 {[%clk 0:00:26.6]} 21... Bxf3 {[%clk 0:00:40.7]} 22. Qxf3 {[%clk 0:00:25.8]}
22... Nxe5 {[%clk 0:00:40.6]} 23. Qe4 {[%clk 0:00:25.3]} 23... Bf6 {[%clk
0:00:20.5]} 24. fxe6 {[%clk 0:00:25.4]} 24... Rb5 {[%clk 0:00:14.9]} 25. Kh1
{[%clk 0:00:21.5]} 25... d2 {[%clk 0:00:14.8]} 26. Rbd1 {[%clk 0:00:20.9]} 26...
Rxb2 {[%clk 0:00:10.6]} 27. Nh5 {[%clk 0:00:19.4]} 27... Qd3 {[%clk 0:00:05.7]}
28. Nxf6+ {[%clk 0:00:14.6]} 28... gxf6 {[%clk 0:00:06.3]} 29. Qh4 {[%clk
0:00:12.2]} 29... fxe6 {[%clk 0:00:05.1]} 30. Qxh6 {[%clk 0:00:11.5]} 30... Qg6
{[%clk 0:00:03.8]} 31. Qe3 {[%clk 0:00:08.5]} 31... Ng4 {[%clk 0:00:03.3]} 32.
Qxe6+ {[%clk 0:00:08.6]} 32... Kh8 {[%clk 0:00:02.1]} 33. Rf4 {[%clk 0:00:06.8]}
33... Nh6 {[%clk 0:00:02.4]} 34. Re4 {[%clk 0:00:06.1]} 34... Rb1 {[%clk
0:00:02.9]} 35. Rxb1 {[%clk 0:00:05.6]} 35... Qh5 {[%clk 0:00:03.4]} 36. Rg1
{[%clk 0:00:05.6]} 36... d1=Q {[%clk 0:00:03.7]} 37. Ree1 {[%clk 0:00:06]} 37...
Qdg4 {[%clk 0:00:03.8]} 38. Qe7 {[%clk 0:00:06.1]} 38... Qg7 {[%clk 0:00:03.6]}
39. Bd6 {[%clk 0:00:06.1]} 39... Qxe7 {[%clk 0:00:03.8]} 40. Bxe7 {[%clk
0:00:06.8]} 40... Rf7 {[%clk 0:00:04.4]} 41. Rgf1 {[%clk 0:00:07.4]} 41... Ng4
{[%clk 0:00:04.8]} 42. h3 {[%clk 0:00:07.5]} 42... Ne5 {[%clk 0:00:04.8]} 43.
Bd6 {[%clk 0:00:07.9]} 43... Ng6 {[%clk 0:00:05]} 44. Bb4 {[%clk 0:00:07.7]}
44... Kh7 {[%clk 0:00:04.9]} 45. Bc3 {[%clk 0:00:08.3]} 45... Rg7 {[%clk
0:00:05]} 46. Bxf6 {[%clk 0:00:08.2]} 46... Rg8 {[%clk 0:00:05.7]} 47. Rd1
{[%clk 0:00:08.1]} 47... Nh4 {[%clk 0:00:02.9]} 48. Rd7+ {[%clk 0:00:08.4]}
48... Kh6 {[%clk 0:00:03.4]} 49. Bd4 {[%clk 0:00:08.2]} 49... Nf5 {[%clk
0:00:03.6]} 50. Be5 {[%clk 0:00:08.1]} 50... Rg6 {[%clk 0:00:03.9]} 51. Bf4+
{[%clk 0:00:08.7]} 51... Rg5 {[%clk 0:00:04]} 52. Rb7 {[%clk 0:00:08.5]} 52...
Kg6 {[%clk 0:00:04]} 53. Rb6+ {[%clk 0:00:09]} 53... Kg7 {[%clk 0:00:04.4]} 54.
Bxg5 {[%clk 0:00:09.7]} 54... Qxg5 {[%clk 0:00:05.1]} 55. Rf3 {[%clk 0:00:09.9]}
55... Ng3+ {[%clk 0:00:05.1]} 56. Kh2 {[%clk 0:00:09.7]} 56... Ne4 {[%clk
0:00:05.7]} 57. Rxa6 {[%clk 0:00:09.4]} 57... Qe5+ {[%clk 0:00:06.1]} 58. Kh1
{[%clk 0:00:10]} 58... Qa1+ {[%clk 0:00:06.3]} 59. Kh2 {[%clk 0:00:10.3]} 59...
Qe5+ {[%clk 0:00:07]} 60. Kh1 {[%clk 0:00:10.8]} 60... Qc5 {[%clk 0:00:06.2]}
61. Raa3 {[%clk 0:00:10.1]} 61... Qc1+ {[%clk 0:00:04.4]} 62. Kh2 {[%clk
0:00:10.6]} 62... Qc7+ {[%clk 0:00:04.9]} 63. Kh1 {[%clk 0:00:10.6]} 63... Qb6
{[%clk 0:00:05.1]} 64. Rae3 {[%clk 0:00:10.2]} 64... Qb1+ {[%clk 0:00:05.3]} 65.
Kh2 {[%clk 0:00:10.7]} 65... Qb8+ {[%clk 0:00:05.5]} 66. Kh1 {[%clk 0:00:11.1]}
66... Kg6 {[%clk 0:00:02.5]} 67. Re1 {[%clk 0:00:09.6]} 67... Qe5 {[%clk
0:00:02.4]} 68. Rfe3 {[%clk 0:00:09.4]} 68... Nf2+ {[%clk 0:00:01.6]} 69. Kg1
{[%clk 0:00:09.7]} 69... Qb2 {[%clk 0:00:01.7]} 70. R3e2 {[%clk 0:00:09.6]}
70... Nxh3+ {[%clk 0:00:01.9]} 71. gxh3 {[%clk 0:00:09.7]} 71... Qd4+ {[%clk
0:00:02.7]} 72. Kh1 {[%clk 0:00:08.8]} 72... Qd5+ {[%clk 0:00:03.2]} 73. Rg2+
{[%clk 0:00:09.3]} 73... Kh5 {[%clk 0:00:03.9]} 74. Kh2 {[%clk 0:00:09]} 74...
Qd6+ {[%clk 0:00:04]} 75. Kh1 {[%clk 0:00:09]} 75... Qd5 {[%clk 0:00:04.2]} 76.
Rg1 {[%clk 0:00:09]} 76... Kh4 {[%clk 0:00:04.6]} 77. Kh2 {[%clk 0:00:09.6]}
77... Qd6+ {[%clk 0:00:05.1]} 78. Rg3 {[%clk 0:00:10.2]} 78... Qf4 {[%clk
0:00:05.3]} 79. Rg2 {[%clk 0:00:10.7]} 79... Qb8 {[%clk 0:00:05.7]} 80. a4
{[%clk 0:00:11.1]} 80... Qe5 {[%clk 0:00:04.7]} 81. Kh1 {[%clk 0:00:09.7]} 81...
Qe1+ {[%clk 0:00:04.3]} 82. Kh2 {[%clk 0:00:10]} 82... Qe5 {[%clk 0:00:04.6]}
83. a5 {[%clk 0:00:09.7]} 83... Qxa5 {[%clk 0:00:04.5]} 84. Rg4+ {[%clk
0:00:10.1]} 84... Kh5 {[%clk 0:00:05]} 85. Rf4 {[%clk 0:00:10.3]} 85... Qe5
{[%clk 0:00:05.1]} 86. Rf2 {[%clk 0:00:11]} 86... Qd6 {[%clk 0:00:05.3]} 87. Kg2
{[%clk 0:00:11.2]} 87... Qd5+ {[%clk 0:00:04.9]} 88. R2f3 {[%clk 0:00:11.6]}
88... Qd2+ {[%clk 0:00:05]} 89. Kg3 {[%clk 0:00:12.1]} 89... Qe1+ {[%clk
0:00:05.4]} 90. Rf2 {[%clk 0:00:12]} 90... Qg1+ {[%clk 0:00:05.7]} 91. Kf3
{[%clk 0:00:11.9]} 91... Qd1+ {[%clk 0:00:06.1]} 92. Kg2 {[%clk 0:00:12.4]}
92... Qd5+ {[%clk 0:00:06.1]} 93. Kg1 {[%clk 0:00:12.8]} 93... Qd1+ {[%clk
0:00:06.3]} 94. Rf1 {[%clk 0:00:13.5]} 94... Qd2 {[%clk 0:00:05.2]} 95. R4f2
{[%clk 0:00:12.9]} 95... Qe3 {[%clk 0:00:04.7]} 96. Kh2 {[%clk 0:00:12.4]} 96...
Qe5+ {[%clk 0:00:04.7]} 97. Kg2 {[%clk 0:00:12.7]} 97... Qe4+ {[%clk 0:00:05.2]}
98. Rf3 {[%clk 0:00:13.3]} 98... Kh4 {[%clk 0:00:05.5]} 99. Kg1 {[%clk
0:00:12.6]} 99... Qd4+ {[%clk 0:00:05.5]} 100. Kh2 {[%clk 0:00:13.1]} 100...
Qd6+ {[%clk 0:00:05.4]} 101. Rf4+ {[%clk 0:00:13.2]} 101... Kg5 {[%clk
0:00:05.6]} 102. Kg3 {[%clk 0:00:13.7]} 102... Qc7 {[%clk 0:00:05.5]} 103. Rf3
{[%clk 0:00:13.3]} 103... Kh5 {[%clk 0:00:04.8]} 104. h4 {[%clk 0:00:13.3]}
104... Qg7+ {[%clk 0:00:05.5]} 105. Kh3 {[%clk 0:00:13.5]} 105... Qd7+ {[%clk
0:00:06]} 106. Rf5+ {[%clk 0:00:14.1]} 106... Kg6 {[%clk 0:00:06.6]} 107. Kg4
{[%clk 0:00:14.1]} 107... Qd4+ {[%clk 0:00:07.2]} 108. Kh3 {[%clk 0:00:13.8]}
108... Qd7 {[%clk 0:00:07]} 109. h5+ {[%clk 0:00:14.4]} 109... Kh6 {[%clk
0:00:07.4]} 110. Kh4 {[%clk 0:00:14.7]} 110... Qd4+ {[%clk 0:00:07.1]} 111. R5f4
{[%clk 0:00:15.3]} 111... Qd8+ {[%clk 0:00:06.9]} 112. Rf6+ {[%clk 0:00:15.7]}
112... Kg7 {[%clk 0:00:07.3]} 113. h6+ {[%clk 0:00:16.1]} 113... Kh7 {[%clk
0:00:06.8]} 114. Kh5 {[%clk 0:00:16.4]} 114... Qe8+ {[%clk 0:00:03.1]} 115. Rf7+
{[%clk 0:00:16.7]} 115... Kh8 {[%clk 0:00:03.7]} 116. Kg5 {[%clk 0:00:13.7]}
116... Qd8+ {[%clk 0:00:02.5]} 117. Kg6 {[%clk 0:00:13.1]} 117... Qe8 {[%clk
0:00:01.6]} 118. Rf4 {[%clk 0:00:11.1]} 118... Qe6+ {[%clk 0:00:02.2]} 119. R7f6
{[%clk 0:00:10.9]} 119... Qe8+ {[%clk 0:00:02.3]} 120. Kg5 {[%clk 0:00:11.4]}
120... Qe5+ {[%clk 0:00:02.7]} 121. Kh4 {[%clk 0:00:11.4]} 121... Qe7 {[%clk
0:00:02.8]} 122. Kh3 {[%clk 0:00:10.8]} 122... Qe3+ {[%clk 0:00:03]} 123. Kg4
{[%clk 0:00:11]} 123... Qe2+ {[%clk 0:00:02.9]} 124. Kg5 {[%clk 0:00:11.2]}
124... Qe7 {[%clk 0:00:02.7]} 125. Kg6 {[%clk 0:00:10.2]} 125... Qe8+ {[%clk
0:00:03]} 126. Rf7 {[%clk 0:00:10.6]} 126... Qe6+ {[%clk 0:00:03.4]} 127. Kh5
{[%clk 0:00:10.5]} 127... Qe8 {[%clk 0:00:03.3]} 128. Rf5 {[%clk 0:00:10]}
128... Qe2+ {[%clk 0:00:03.5]} 129. Kg6 {[%clk 0:00:10.3]} 129... Qe6+ {[%clk
0:00:03.9]} 130. R7f6 {[%clk 0:00:10.6]} 130... Qe8+ {[%clk 0:00:04.3]} 131. Kg5
{[%clk 0:00:11.1]} 131... Qe3+ {[%clk 0:00:04.7]} 132. Rf4 {[%clk 0:00:10.6]}
132... Qg3+ {[%clk 0:00:05.3]} 133. Kf5 {[%clk 0:00:10.5]} 133... Kh7 {[%clk
0:00:05.8]} 134. Rg4 {[%clk 0:00:09]} 134... Qf3+ {[%clk 0:00:06]} 135. Kg5
{[%clk 0:00:09.3]} 135... Qe3+ {[%clk 0:00:06.4]} 136. Kh4 {[%clk 0:00:08]}
136... Qe8 {[%clk 0:00:02.3]} 137. Rg7+ {[%clk 0:00:08.1]} 137... Kh8 {[%clk
0:00:03]} 138. Rgf7 {[%clk 0:00:06.4]} 138... Qe1+ {[%clk 0:00:03.5]} 139. Rf2
{[%clk 0:00:06.2]} 139... Qe4+ {[%clk 0:00:03.1]} 140. Kh5 {[%clk 0:00:06.5]}
140... Qd5+ {[%clk 0:00:03]} 141. R7f5 {[%clk 0:00:05.9]} 141... Qh1+ {[%clk
0:00:03.5]} 142. Kg6 {[%clk 0:00:05.9]} 142... Qc6+ {[%clk 0:00:04.1]} 143. Rf6
{[%clk 0:00:06.2]} 143... Qe4+ {[%clk 0:00:04.4]} 144. Kf7 {[%clk 0:00:06.2]}
144... Qb7+ {[%clk 0:00:04.4]} 145. Kg6 {[%clk 0:00:06]} 145... Qe4+ {[%clk
0:00:04.8]} 146. Kg5 {[%clk 0:00:06.6]} 146... Qd5+ {[%clk 0:00:04.3]} 147. Kg4
{[%clk 0:00:06.5]} 147... Qe4+ {[%clk 0:00:04.3]} 148. Kg3 {[%clk 0:00:06.1]}
148... Qe3+ {[%clk 0:00:04.2]} 149. Kh4 {[%clk 0:00:05.9]} 149... Qe4+ {[%clk
0:00:04]} 150. R6f4 {[%clk 0:00:06.3]} 150... Qe7+ {[%clk 0:00:04]} 151. Kh5
{[%clk 0:00:06.5]} 151... Qe8+ {[%clk 0:00:03.9]} 152. Rf7 {[%clk 0:00:06.8]}
152... Qe5+ {[%clk 0:00:04.5]} 153. Kg4 {[%clk 0:00:05.3]} 153... Qe4+ {[%clk
0:00:04.7]} 154. R7f4 {[%clk 0:00:05.7]} 154... Qg6+ {[%clk 0:00:04.9]} 155. Kh3
{[%clk 0:00:06.1]} 155... Qd3+ {[%clk 0:00:04.1]} 156. R2f3 {[%clk 0:00:06.2]}
156... Qd7+ {[%clk 0:00:04.8]} 157. Kh2 {[%clk 0:00:06.1]} 157... Qd2+ {[%clk
0:00:04.9]} 158. Rf2 {[%clk 0:00:06.4]} 158... Qd6 {[%clk 0:00:05.6]} 159. Kg2
{[%clk 0:00:05.8]} 159... Qd5+ {[%clk 0:00:05.7]} 160. Kg3 {[%clk 0:00:05.9]}
160... Qe5 {[%clk 0:00:05]} 161. Kg4 {[%clk 0:00:06]} 161... Qe6+ {[%clk
0:00:05.4]} 162. Kh5 {[%clk 0:00:06.4]} 162... Qd5+ {[%clk 0:00:05.5]} 163. Rf5
{[%clk 0:00:06.8]} 1/2-1/2